[Event "TUR-chT Superleague 2018"]
[Site "Ankara"]
[Date "2018.07.29"]
[Round "5"]
[White "Apaydin, Fethi"]
[Black "Uysal, Burak"]
[Result "0-1"]
[ECO "C27"]
[WhiteElo "2353"]
[BlackElo "2185"]
[Annotator "NA"]
[PlyCount "62"]
[EventDate "2018.07.25"]
[EventType "team-tourn"]
[EventCountry "TUR"]
[SourceTitle "playchess.com"]
[Source "ChessBase"]
[SourceQuality "1"]
[TimeControl "40/5400+30:1800+30"]

1. e4 {[%emt 0:00:30]} e5 {[%emt 0:01:00]} 2. Nc3 {[%emt 0:00:30]} Nf6 {[%emt 0:00:00]} 3. Bc4 {[%emt 0:02:30]} Nxe4 {[%emt 0:00:00]} 4. Qh5 {[%emt 0:00:00]} Nd6 {[%emt 0:00:30]} 5. Bb3 {[%emt 0:00:00]} Be7 {[%emt 0:00:00]} 6. Nf3 {[%emt 0:00:30]} Nc6 {[%emt 0:00:00]} 7. Nxe5 {[%emt 0:01:30]} g6 {[%emt 0:00:30]} 8. Qe2 {[%emt 0:00:30]} Nd4 {[%emt 0:18:30]} 9. Qd1 {[%emt 0:09:30]} O-O $15 {[%emt 0:05:30]} 10. O-O {[%emt 0:17:30]} c6 {[%emt 0:02:30]} 11. Re1 {[%emt 0:06:30]} N6f5 {[%emt 0:06:30]} 12. Ne2 {[%emt 0:08:30]} d6 {[%emt 0:03:30]} 13. Ng4 {[%emt 0:00:30]} h5 {[%emt 0:04:30]} 14. Nh6+ {[%emt 0:07:30]} Nxh6 {[%emt 0:05:30]} 15. Nxd4 {[%emt 0:00:30]} d5 {[%emt 0:06:30]} 16. Nf3 {[%emt 0:01:30]} Bg4 {[%emt 0:06:30]} 17. h3 {[%emt 0:02:30]} Bxf3 {[%emt 0:00:30]} 18. Qxf3 {[%emt 0:00:30]} Bg5 {[%emt 0:01:30]} 19. d4 {[%emt 0:03:30]} Bxc1 {[%emt 0:02:30]} 20. Raxc1 {[%emt 0:00:30]} Qg5 {[%emt 0:00:30]} 21. Rcd1 {[%emt 0:20:56]} Nf5 {[%emt 0:14:30]} 22. Kh2 {[%emt 0:07:29]} Rae8 {[%emt 0:01:51]} 23. c3 {[%emt 0:01:52]} Re6 {[%emt 0:03:49]} 24. g3 {[%emt 0:05:11]} Rfe8 {[%emt 0:02:27]} 25. Rxe6 {[%emt 0:00:32]} Rxe6 {[%emt 0:01:44]} 26. Bc2 {[%emt 0:00:48]} Nd6 {[%emt 0:01:14]} 27. Kg2 {[%emt 0:00:58]} Qe7 {[%emt 0:01:49]} 28. Bd3 {[%emt 0:00:22]} h4 {[%emt 0:00:38]} 29. Rd2 {[%emt 0:00:44]} hxg3 {[%emt 0:00:43]} 30. Qxg3 {[%emt 0:00:30]} Ne8 {[%emt 0:04:43]} 31. Qf3 {[%emt 0:00:50]} Qg5+ {[%emt 0:00:18]} 0-1

[Event "TUR-chT Superleague 2018"]
[Site "Ankara"]
[Date "2018.07.29"]
[Round "5"]
[White "Savina, Anastasia"]
[Black "Injac, Teodora"]
[Result "0-1"]
[ECO "E90"]
[WhiteElo "2342"]
[BlackElo "2302"]
[Annotator "NA"]
[PlyCount "56"]
[EventDate "2018.07.25"]
[EventType "team-tourn"]
[EventCountry "TUR"]
[SourceTitle "playchess.com"]
[Source "ChessBase"]
[SourceQuality "1"]
[TimeControl "40/5400+30:1800+30"]

1. d4 {[%emt 0:00:30]} Nf6 {[%emt 0:01:00]} 2. c4 {[%emt 0:00:30]} g6 {[%emt 0:00:30]} 3. Nc3 {[%emt 0:00:30]} Bg7 {[%emt 0:00:30]} 4. e4 {[%emt 0:00:30]} d6 {[%emt 0:00:00]} 5. h3 {[%emt 0:00:00]} O-O {[%emt 0:00:00] LiveBook: 3090 Games} 6. Be3 {[%emt 0:00:00]} c5 {[%emt 0:01:30]} 7. Nf3 {[%emt 0:00:30]} Na6 {[%emt 0:04:30]} 8. d5 {[%emt 0:04:30]} e6 {[%emt 0:00:30]} 9. Bd3 {[%emt 0:04:30]} exd5 {[%emt 0:00:30]} 10. exd5 {[%emt 0:00:30]} Nb4 {[%emt 0:01:30]} 11. Bb1 {[%emt 0:01:30]} b5 {[%emt 0:01:30]} 12. a3 {[%emt 0:17:30]} Qa5 $15 {[%emt 0:01:30]} 13. Nd2 {[%emt 0:19:30]} bxc4 {[%emt 0:06:30]} 14. Nxc4 {[%emt 0:02:30]} Qa6 {[%emt 0:00:30]} 15. axb4 {[%emt 0:18:30]} Qxa1 {[%emt 0:00:30]} 16. b5 {[%emt 0:00:30]} Nd7 {[%emt 0:09:30]} 17. O-O {[%emt 0:01:30]} Nb6 {[%emt 0:09:30]} 18. Nxd6 {[%emt 0:04:30]} Qxb2 {[%emt 0:01:30]} 19. Nce4 {[%emt 0:01:30]} c4 {[%emt 0:09:30]} 20. Re1 {[%emt 0:06:40]} f5 {[%emt 0:07:30]} 21. Ng5 {[%emt 0:04:47]} Qb4 {[%emt 0:15:30]} 22. Nxc8 {[%emt 0:05:41]} Raxc8 {[%emt 0:03:30]} 23. d6 {[%emt 0:01:16]} Rcd8 {[%emt 0:10:22]} 24. Bf4 {[%emt 0:01:39]} Rfe8 {[%emt 0:01:48]} 25. Ne6 {[%emt 0:01:27]} Nd5 {[%emt 0:07:56]} 26. Bh2 {[%emt 0:01:28]} f4 {[%emt 0:01:18]} 27. Be4 {[%emt 0:00:29]} Nc3 {[%emt 0:00:53]} 28. Qa1 {[%emt 0:00:31]} Ne2+ {[%emt 0:00:28]} 0-1

[Event "TUR-chT Superleague 2018"]
[Site "Ankara"]
[Date "2018.07.29"]
[Round "5"]
[White "Kilic, Efe Mert"]
[Black "Yaran, Siar"]
[Result "1-0"]
[ECO "C41"]
[WhiteElo "2317"]
[BlackElo "2261"]
[Annotator "NA"]
[PlyCount "105"]
[EventDate "2018.07.25"]
[EventType "team-tourn"]
[EventCountry "TUR"]
[SourceTitle "playchess.com"]
[Source "ChessBase"]
[SourceQuality "1"]
[TimeControl "40/5400+30:1800+30"]

1. e4 {[%emt 0:00:30]} e5 {[%emt 0:01:00]} 2. Nf3 {[%emt 0:00:30]} Nc6 {[%emt 0:00:00]} 3. d4 {[%emt 0:01:30]} exd4 {[%emt 0:00:00]} 4. Nxd4 {[%emt 0:00:00]} g6 {[%emt 0:01:30]} 5. Nc3 {[%emt 0:05:00]} Bg7 {[%emt 0:00:30]} 6. Nxc6 {[%emt 0:00:30]} bxc6 {[%emt 0:00:30]} 7. Bc4 {[%emt 0:01:30]} d6 {[%emt 0:01:30]} 8. O-O {[%emt 0:00:00]} Be6 {[%emt 0:01:30]} 9. Qd3 {[%emt 0:10:00]} Ne7 {[%emt 0:10:30]} 10. Bxe6 {[%emt 0:01:30]} fxe6 {[%emt 0:00:30]} 11. Qh3 {[%emt 0:00:30]} Qd7 {[%emt 0:00:30]} 12. Bh6 {[%emt 0:00:00]} O-O {[%emt 0:00:30]} 13. Bxg7 {[%emt 0:01:00]} Kxg7 {[%emt 0:00:00]} 14. Rad1 {[%emt 0:00:30]} Qc8 {[%emt 0:09:00]} 15. e5 {[%emt 0:05:30]} d5 {[%emt 0:00:30]} 16. Na4 $16 {[%emt 0:00:30]} Rf4 {[%emt 0:09:30]} 17. Nc5 {[%emt 0:06:30]} Nf5 {[%emt 0:00:30]} 18. b3 {[%emt 0:06:30]} Rb8 {[%emt 0:10:30]} 19. g3 {[%emt 0:08:30]} Rf3 {[%emt 0:25:30]} 20. Nd3 {[%emt 0:00:30]} Qf8 {[%emt 0:00:30]} 21. Qg4 {[%emt 0:01:30]} Rxd3 {[%emt 0:05:30]} 22. Rxd3 {[%emt 0:00:30]} Qa3 {[%emt 0:02:40]} 23. Qg5 {[%emt 0:14:30]} Rf8 {[%emt 0:00:08]} 24. g4 {[%emt 0:03:30]} h6 {[%emt 0:02:10]} 25. Qc1 {[%emt 0:01:30]} Qxc1 {[%emt 0:00:30]} 26. Rxc1 {[%emt 0:00:30]} Nh4 {[%emt 0:00:00]} 27. h3 {[%emt 0:00:30]} c5 {[%emt 0:03:27]} 28. Rc3 {[%emt 0:02:30]} c4 {[%emt 0:00:33]} 29. bxc4 {[%emt 0:01:30]} d4 {[%emt 0:00:05]} 30. Ra3 {[%emt 0:00:00]} Nf3+ {[%emt 0:01:44]} 31. Kg2 {[%emt 0:00:00]} Nxe5 {[%emt 0:00:11]} 32. Rxa7 {[%emt 0:01:30]} Rf7 {[%emt 0:00:01]} 33. Rb1 {[%emt 0:01:30]} d3 {[%emt 0:02:02]} 34. cxd3 {[%emt 0:00:30]} Nxd3 {[%emt 0:00:00]} 35. f3 {[%emt 0:01:30]} Nf4+ {[%emt 0:00:36]} 36. Kh2 {[%emt 0:00:30]} Rd7 {[%emt 0:01:56]} 37. Rbb7 {[%emt 0:02:30]} Rd2+ {[%emt 0:00:43]} 38. Kg3 {[%emt 0:01:30]} g5 {[%emt 0:00:39]} 39. Rxc7+ {[%emt 0:00:30]} Kg6 {[%emt 0:00:30]} 40. Rg7+ {[%emt 0:00:30]} Kf6 {[%emt 0:00:00]} 41. Rgf7+ {[%emt 0:00:00]} Kg6 {[%emt 0:04:05]} 42. Rxf4 {[%emt 0:00:00]} gxf4+ {[%emt 0:00:30]} 43. Kxf4 {[%emt 0:00:00]} Rd4+ {[%emt 0:00:00]} 44. Ke5 {[%emt 0:00:00]} Rxc4 {[%emt 0:00:00]} 45. f4 {[%emt 0:03:30]} Rc3 {[%emt 0:00:30]} 46. f5+ {[%emt 0:02:30]} exf5 {[%emt 0:00:30]} 47. gxf5+ {[%emt 0:00:00]} Kh5 {[%emt 0:00:00]} 48. f6 {[%emt 0:00:00]} Re3+ {[%emt 0:03:00]} 49. Kf4 {[%emt 0:01:30]} Re2 {[%emt 0:05:30]} 50. Kf5 {[%emt 0:03:30]} Re3 {[%emt 0:03:30]} 51. Ra4 {[%emt 0:03:30]} Rc3 {[%emt 0:09:30]} 52. f7 {[%emt 0:00:30]} Rc6 {[%emt 0:00:30]} 53. Ra5 {[%emt 0:01:30]} 1-0

[Event "TUR-chT Superleague 2018"]
[Site "Ankara"]
[Date "2018.07.29"]
[Round "5"]
[White "Keler, Faruk"]
[Black "Soysal, Serkan"]
[Result "1/2-1/2"]
[ECO "C70"]
[WhiteElo "2286"]
[BlackElo "2406"]
[Annotator "NA"]
[PlyCount "72"]
[EventDate "2018.07.25"]
[EventType "team-tourn"]
[EventCountry "TUR"]
[SourceTitle "playchess.com"]
[Source "ChessBase"]
[SourceQuality "1"]
[TimeControl "40/5400+30:1800+30"]

1. e4 {[%emt 0:00:30]} e5 {[%emt 0:01:00]} 2. Nf3 {[%emt 0:00:30]} Nc6 {[%emt 0:00:30]} 3. Bb5 {[%emt 0:00:30]} a6 {[%emt 0:00:30]} 4. Ba4 {[%emt 0:00:30]} g6 {[%emt 0:00:00]} 5. d4 {[%emt 0:14:30]} exd4 {[%emt 0:00:00]} 6. Bg5 {[%emt 0:01:30]} Be7 {[%emt 0:05:30]} 7. Bxe7 {[%emt 0:00:30] LiveBook: 29 Games} Qxe7 {[%emt 0:00:30]} 8. Bxc6 {[%emt 0:06:30]} bxc6 {[%emt 0:18:30]} (8... dxc6 $11 9. Qxd4 Nf6) 9. Qxd4 $16 {[%emt 0:02:30]} Nf6 {[%emt 0:03:30]} 10. Nc3 {[%emt 0:01:30]} O-O {[%emt 0:08:30]} 11. e5 {[%emt 0:16:30]} Nd5 {[%emt 0:06:30]} 12. Nxd5 {[%emt 0:06:30]} cxd5 {[%emt 0:00:30]} 13. Qxd5 {[%emt 0:00:30]} Qb4+ {[%emt 0:04:30]} 14. Qd2 {[%emt 0:01:30]} Qxb2 {[%emt 0:19:30]} 15. O-O {[%emt 0:00:30]} Rb8 {[%emt 0:01:30]} 16. Qh6 {[%emt 0:11:30]} f6 {[%emt 0:01:30]} 17. Rad1 {[%emt 0:07:30]} d6 {[%emt 0:02:30]} 18. exd6 {[%emt 0:01:30]} cxd6 {[%emt 0:00:30]} 19. Rxd6 {[%emt 0:00:30]} Qxc2 {[%emt 0:01:30]} 20. Rd2 {[%emt 0:07:46]} Qc7 {[%emt 0:02:30]} 21. h3 {[%emt 0:00:38]} Be6 {[%emt 0:06:30]} 22. Re1 {[%emt 0:01:13]} Rfe8 {[%emt 0:01:34]} 23. Rde2 {[%emt 0:01:13]} Bf7 {[%emt 0:00:00]} 24. Rxe8+ {[%emt 0:00:04]} Rxe8 {[%emt 0:00:28]} 25. Rxe8+ {[%emt 0:00:30]} Bxe8 {[%emt 0:00:30]} 26. Qe3 {[%emt 0:00:30]} Bf7 {[%emt 0:00:30]} 27. a3 {[%emt 0:00:30]} Qd6 {[%emt 0:00:00]} 28. Qc3 {[%emt 0:02:40]} Qd1+ {[%emt 0:02:34]} 29. Kh2 {[%emt 0:00:17]} Qd6+ {[%emt 0:00:33]} 30. Kg1 {[%emt 0:00:12]} Kg7 {[%emt 0:00:07]} 31. Qe3 {[%emt 0:01:48]} a5 {[%emt 0:03:11]} 32. Qc3 {[%emt 0:01:19]} a4 {[%emt 0:01:00]} 33. Nd4 {[%emt 0:02:35]} h5 {[%emt 0:01:54]} 34. Nb5 {[%emt 0:05:34]} Qd1+ {[%emt 0:03:13]} 35. Kh2 {[%emt 0:00:01]} Qe2 {[%emt 0:02:18]} 36. Qc5 {[%emt 0:00:56]} h4 {[%emt 0:03:22]} 1/2-1/2

[Event "TUR-chT Superleague 2018"]
[Site "Ankara"]
[Date "2018.07.29"]
[Round "5"]
[White "Tasdogen, Dincer"]
[Black "Gunduz, Umut Erdem"]
[Result "1-0"]
[ECO "A05"]
[WhiteElo "2280"]
[BlackElo "2130"]
[Annotator "NA"]
[PlyCount "103"]
[EventDate "2018.07.25"]
[EventType "team-tourn"]
[EventCountry "TUR"]
[SourceTitle "playchess.com"]
[Source "ChessBase"]
[SourceQuality "1"]
[TimeControl "40/5400+30:1800+30"]

1. Nf3 {[%emt 0:00:30]} Nf6 {[%emt 0:01:00]} 2. g3 {[%emt 0:00:30]} b5 {[%emt 0:00:30]} 3. Bg2 {[%emt 0:00:30]} Bb7 {[%emt 0:00:00]} 4. O-O {[%emt 0:00:30]} e6 {[%emt 0:00:00]} 5. d3 {[%emt 0:02:30]} Be7 {[%emt 0:00:30]} 6. e4 {[%emt 0:00:30]} d6 {[%emt 0:00:30]} 7. Nd4 {[%emt 0:00:00]} Qd7 {[%emt 0:00:00]} 8. f4 {[%emt 0:03:00]} c5 {[%emt 0:04:00]} 9. Nf3 {[%emt 0:06:30]} Nc6 {[%emt 0:11:30]} 10. Nc3 {[%emt 0:00:00]} a6 {[%emt 0:02:30]} 11. h3 {[%emt 0:09:00]} Qc7 {[%emt 0:14:30]} 12. Ne2 {[%emt 0:06:30]} d5 {[%emt 0:07:30]} 13. e5 {[%emt 0:01:30]} Nd7 {[%emt 0:00:30]} 14. c3 {[%emt 0:00:30]} d4 {[%emt 0:02:30]} 15. cxd4 {[%emt 0:13:30]} Nxd4 {[%emt 0:00:30]} 16. Nexd4 {[%emt 0:03:30]} cxd4 {[%emt 0:00:30]} 17. Bd2 {[%emt 0:01:30]} Nc5 {[%emt 0:09:30]} 18. Rc1 {[%emt 0:02:30]} Qd7 {[%emt 0:02:30]} 19. Bb4 {[%emt 0:07:30]} Nxd3 {[%emt 0:17:30]} 20. Qxd3 {[%emt 0:12:30]} Bxb4 {[%emt 0:00:30]} 21. Nxd4 {[%emt 0:05:30]} Bxg2 {[%emt 0:01:30]} 22. Kxg2 {[%emt 0:00:30]} O-O {[%emt 0:00:30]} 23. Rfd1 {[%emt 0:01:30]} Qd5+ {[%emt 0:05:40]} 24. Qf3 {[%emt 0:04:29]} Qxa2 {[%emt 0:02:15]} 25. Rc2 {[%emt 0:00:01]} Rfe8 {[%emt 0:09:26]} 26. Nc6 {[%emt 0:02:38]} a5 {[%emt 0:02:39]} 27. Rd7 {[%emt 0:02:50]} Qb1 {[%emt 0:02:06]} 28. Qe2 {[%emt 0:04:59]} Qe1 {[%emt 0:02:30]} 29. Qxe1 {[%emt 0:03:21]} Bxe1 {[%emt 0:00:30]} 30. Rc5 {[%emt 0:00:00]} g6 {[%emt 0:01:21]} 31. Rd1 {[%emt 0:04:21]} Bb4 {[%emt 0:00:30]} 32. Rxb5 {[%emt 0:00:00]} Rec8 {[%emt 0:00:28]} 33. Rc1 {[%emt 0:01:40]} Rc7 {[%emt 0:00:33]} 34. Rc4 {[%emt 0:00:42]} Bf8 {[%emt 0:00:47]} 35. b3 {[%emt 0:00:16]} Ra6 {[%emt 0:00:11]} 36. Nxa5 {[%emt 0:00:32]} Rca7 {[%emt 0:00:22]} 37. Ra4 {[%emt 0:01:27]} Kg7 {[%emt 0:00:49]} 38. Rb7 {[%emt 0:00:01]} Ra8 {[%emt 0:00:30]} 39. Nc6 {[%emt 0:00:00]} Rxa4 {[%emt 0:00:30]} 40. bxa4 {[%emt 0:00:00]} Rxa4 {[%emt 0:30:30]} 41. Nd8 {[%emt 0:00:43]} Ra2+ {[%emt 0:00:00]} 42. Kf1 {[%emt 0:01:30]} Ra1+ {[%emt 0:00:00]} 43. Ke2 {[%emt 0:04:30]} Ra2+ {[%emt 0:00:00]} 44. Kf3 {[%emt 0:02:30]} Ra3+ {[%emt 0:00:00]} 45. Ke4 {[%emt 0:00:30]} Ra4+ {[%emt 0:00:00]} 46. Kf3 {[%emt 0:03:30]} Ra3+ {[%emt 0:00:00]} 47. Kg4 {[%emt 0:01:30]} h5+ {[%emt 0:00:00]} 48. Kh4 {[%emt 0:00:00]} Kg8 {[%emt 0:00:00]} 49. Nxf7 {[%emt 0:01:00]} Bc5 {[%emt 0:00:00]} 50. Ng5 {[%emt 0:03:08]} Bf2 {[%emt 0:00:00]} 51. Ne4 {[%emt 0:00:03]} Be1 {[%emt 0:00:00]} 52. Kg5 {[%emt 0:00:40]} 1-0

[Event "TUR-chT Superleague 2018"]
[Site "Ankara"]
[Date "2018.07.29"]
[Round "5"]
[White "Uzumcu, Ahmet Utku"]
[Black "Can, Isik"]
[Result "0-1"]
[ECO "B90"]
[WhiteElo "2261"]
[BlackElo "2385"]
[Annotator "NA"]
[PlyCount "50"]
[EventDate "2018.07.25"]
[EventType "team-tourn"]
[EventCountry "TUR"]
[SourceTitle "playchess.com"]
[Source "ChessBase"]
[SourceQuality "1"]
[TimeControl "40/5400+30:1800+30"]

1. e4 {[%emt 0:00:30]} c5 {[%emt 0:01:00]} 2. Nf3 {[%emt 0:00:30]} d6 {[%emt 0:00:30]} 3. d4 {[%emt 0:00:30]} cxd4 {[%emt 0:00:30]} 4. Nxd4 {[%emt 0:00:30]} Nf6 {[%emt 0:00:30]} 5. Nc3 {[%emt 0:00:00]} a6 {[%emt 0:00:00]} 6. h3 {[%emt 0:00:00] LiveBook: 3140 Games} e5 {[%emt 0:00:00]} 7. Nde2 {[%emt 0:00:00]} b5 {[%emt 0:00:00]} 8. g4 {[%emt 0:01:00]} b4 {[%emt 0:00:00]} 9. Nd5 {[%emt 0:01:30]} Nxd5 {[%emt 0:00:00]} 10. Qxd5 {[%emt 0:01:30]} Ra7 {[%emt 0:00:00]} 11. Be3 {[%emt 0:05:30]} Rd7 {[%emt 0:12:30]} 12. c4 {[%emt 0:11:30]} Bb7 {[%emt 0:08:30]} 13. Qd3 $11 {[%emt 0:02:30]} Be7 {[%emt 0:05:30]} 14. Ng3 {[%emt 0:02:30]} g6 {[%emt 0:05:30]} 15. Bg2 {[%emt 0:03:30]} Bg5 {[%emt 0:03:30]} 16. O-O {[%emt 0:02:30]} Nc6 {[%emt 0:02:30]} 17. Rfd1 {[%emt 0:04:30]} O-O {[%emt 0:03:30]} 18. Rac1 {[%emt 0:08:30]} Nd4 {[%emt 0:18:30]} 19. Qd2 {[%emt 0:05:30]} h6 {[%emt 0:14:30]} 20. Qxb4 {[%emt 0:16:30]} f5 {[%emt 0:01:30]} 21. f4 {[%emt 0:20:47]} exf4 {[%emt 0:06:49]} 22. Bxd4 {[%emt 0:00:09]} fxg3 {[%emt 0:00:44]} 23. Rc3 {[%emt 0:01:45]} Bxe4 {[%emt 0:07:57]} 24. gxf5 {[%emt 0:04:27]} Bxg2 {[%emt 0:02:38]} 25. Kxg2 {[%emt 0:00:06]} Qe7 {[%emt 0:00:21]} 0-1

[Event "TUR-chT Superleague 2018"]
[Site "Ankara"]
[Date "2018.07.29"]
[Round "5"]
[White "Kamer, Kayra"]
[Black "Isik, Alparslan"]
[Result "0-1"]
[ECO "B23"]
[WhiteElo "2181"]
[BlackElo "2212"]
[Annotator "NA"]
[PlyCount "128"]
[EventDate "2018.07.25"]
[EventType "team-tourn"]
[EventCountry "TUR"]
[SourceTitle "playchess.com"]
[Source "ChessBase"]
[SourceQuality "1"]
[TimeControl "40/5400+30:1800+30"]

1. e4 {[%emt 0:00:30]} c5 {[%emt 0:01:00]} 2. Nc3 {[%emt 0:00:30]} a6 {[%emt 0:00:30]} 3. Nge2 {[%emt 0:00:30]} d6 {[%emt 0:02:30]} 4. a4 {[%emt 0:01:30]} g6 {[%emt 0:03:30]} 5. g3 {[%emt 0:03:30]} Bg7 {[%emt 0:01:30]} 6. Bg2 {[%emt 0:00:00]} Nc6 {[%emt 0:00:30]} 7. d3 {[%emt 0:00:00]} Rb8 {[%emt 0:01:30]} 8. Bg5 {[%emt 0:01:30]} b5 {[%emt 0:02:30]} 9. axb5 {[%emt 0:00:30]} axb5 {[%emt 0:00:00]} 10. Qd2 {[%emt 0:02:30]} Nd4 {[%emt 0:03:00]} 11. O-O {[%emt 0:03:30]} Nf6 {[%emt 0:04:30]} 12. Nxd4 {[%emt 0:01:30]} cxd4 {[%emt 0:00:30]} 13. Bxf6 {[%emt 0:00:30]} Bxf6 {[%emt 0:01:30]} 14. Nd5 {[%emt 0:00:00]} Bg7 {[%emt 0:04:30]} 15. Nb4 $11 {[%emt 0:06:00]} Bb7 {[%emt 0:06:30]} 16. f4 {[%emt 0:00:30]} O-O {[%emt 0:00:30]} 17. f5 {[%emt 0:01:30]} e6 {[%emt 0:05:30]} 18. Qf4 {[%emt 0:04:30]} Be5 {[%emt 0:04:30]} 19. Qh6 {[%emt 0:00:30]} Ra8 {[%emt 0:01:30]} 20. Rxa8 {[%emt 0:00:30]} Bxa8 {[%emt 0:00:00]} 21. Bh3 {[%emt 0:21:30]} Bg7 {[%emt 0:17:00]} 22. Qf4 {[%emt 0:00:30]} exf5 {[%emt 0:00:30]} 23. exf5 {[%emt 0:01:30]} Qc8 {[%emt 0:00:30]} 24. Bg4 {[%emt 0:04:30]} Qc5 {[%emt 0:04:30]} 25. f6 {[%emt 0:00:30]} Bh8 {[%emt 0:04:30]} 26. Qd2 {[%emt 0:01:30]} Qe5 {[%emt 0:00:30]} 27. Qf2 {[%emt 0:01:30]} Qc5 {[%emt 0:03:30]} 28. Qe1 {[%emt 0:10:30]} Qg5 {[%emt 0:02:30]} 29. Bf3 {[%emt 0:03:30]} Bxf3 {[%emt 0:03:30]} 30. Rxf3 {[%emt 0:00:00]} Bxf6 {[%emt 0:01:30]} 31. h4 {[%emt 0:00:00]} Qe5 {[%emt 0:00:30]} 32. Qf2 {[%emt 0:00:30]} Bg7 {[%emt 0:00:30]} 33. Nc6 {[%emt 0:00:30]} Qe6 {[%emt 0:01:30]} 34. Nxd4 {[%emt 0:00:30]} Qd5 {[%emt 0:00:30]} 35. Rf4 {[%emt 0:07:30]} Be5 {[%emt 0:01:18]} 36. c4 {[%emt 0:01:30]} bxc4 {[%emt 0:00:20]} 37. dxc4 {[%emt 0:00:30]} Qxc4 {[%emt 0:01:18]} 38. Rg4 {[%emt 0:00:30]} f5 {[%emt 0:02:48]} 39. Nxf5 {[%emt 0:00:30]} Qc1+ {[%emt 0:00:28]} 40. Kh2 {[%emt 0:00:00]} Kh8 {[%emt 0:01:48]} 41. Rg5 {[%emt 0:02:00]} Qc8 {[%emt 0:05:30]} 42. b4 {[%emt 0:03:30]} Rxf5 {[%emt 0:00:30]} 43. Rxf5 {[%emt 0:00:30]} Qxf5 {[%emt 0:00:30]} 44. Qb6 {[%emt 0:00:00]} Kg7 {[%emt 0:01:30]} 45. b5 {[%emt 0:01:00]} Qc2+ {[%emt 0:05:30]} 46. Kh3 {[%emt 0:00:30]} Qc4 {[%emt 0:00:30]} 47. Qa7+ {[%emt 0:00:00]} Kg8 {[%emt 0:03:30]} 48. Qa8+ {[%emt 0:00:00]} Kg7 {[%emt 0:01:30]} 49. Qa7+ {[%emt 0:00:30]} Kf6 {[%emt 0:01:30]} 50. Qf2+ {[%emt 0:00:30]} Ke6 {[%emt 0:00:30]} 51. b6 {[%emt 0:00:30]} Qb3 {[%emt 0:00:30]} 52. Kg4 {[%emt 0:03:30]} Qd1+ {[%emt 0:04:30]} 53. Kh3 {[%emt 0:01:30]} Qh1+ {[%emt 0:00:30]} 54. Kg4 {[%emt 0:00:30]} Qe4+ {[%emt 0:00:30]} 55. Kg5 {[%emt 0:00:30]} Qf5+ {[%emt 0:00:30]} 56. Qxf5+ {[%emt 0:00:30]} gxf5 {[%emt 0:00:30]} 57. Kh6 {[%emt 0:00:30]} d5 {[%emt 0:00:30]} 58. Kxh7 {[%emt 0:00:30]} d4 {[%emt 0:00:30]} 59. Kg6 {[%emt 0:00:30]} d3 {[%emt 0:00:30]} 60. h5 {[%emt 0:00:30]} d2 {[%emt 0:00:30]} 61. h6 {[%emt 0:00:00]} d1=Q {[%emt 0:00:00]} 62. b7 {[%emt 0:00:00]} Qg4+ {[%emt 0:00:00]} 63. Kh7 {[%emt 0:00:00]} Kf7 {[%emt 0:00:00]} 64. b8=Q {[%emt 0:00:00]} Bxb8 {[%emt 0:00:00]} 0-1

[Event "TUR-chT Superleague 2018"]
[Site "Ankara"]
[Date "2018.07.29"]
[Round "5"]
[White "Ozkan, Ervin"]
[Black "Ozoglu, Berker"]
[Result "1-0"]
[ECO "A48"]
[WhiteElo "2171"]
[BlackElo "1843"]
[Annotator "NA"]
[PlyCount "89"]
[EventDate "2018.07.25"]
[EventType "team-tourn"]
[EventCountry "TUR"]
[SourceTitle "playchess.com"]
[Source "ChessBase"]
[SourceQuality "1"]
[TimeControl "40/5400+30:1800+30"]

1. d4 {[%emt 0:00:30]} Nf6 {[%emt 0:01:00]} 2. Bf4 {[%emt 0:00:30]} d6 {[%emt 0:01:30]} 3. h3 {[%emt 0:02:30]} g6 {[%emt 0:01:30]} 4. Nf3 {[%emt 0:00:00]} Bg7 {[%emt 0:00:30]} 5. e3 {[%emt 0:00:00]} O-O {[%emt 0:01:30]} 6. Be2 {[%emt 0:00:30]} Nbd7 {[%emt 0:01:30]} 7. O-O {[%emt 0:00:30]} Re8 {[%emt 0:06:30]} 8. Bh2 {[%emt 0:01:30]} c6 {[%emt 0:02:30]} 9. c4 {[%emt 0:00:30]} Ne4 {[%emt 0:05:30]} 10. Qc2 $11 {[%emt 0:02:30]} f5 {[%emt 0:07:30]} 11. Rd1 {[%emt 0:02:30]} Ndf6 {[%emt 0:04:30]} 12. Nc3 {[%emt 0:04:30]} e6 {[%emt 0:04:30]} 13. Bd3 {[%emt 0:01:30]} d5 {[%emt 0:04:30]} 14. b4 {[%emt 0:06:30]} Qe7 {[%emt 0:03:30]} 15. Rab1 {[%emt 0:02:30]} Nxc3 {[%emt 0:02:30]} 16. Qxc3 {[%emt 0:00:00]} Ne4 {[%emt 0:00:00]} 17. Bxe4 {[%emt 0:01:00]} dxe4 {[%emt 0:03:00]} 18. Ne5 {[%emt 0:00:30]} g5 {[%emt 0:03:30]} 19. c5 {[%emt 0:03:30]} Rf8 {[%emt 0:02:30]} 20. Nc4 {[%emt 0:01:30]} Qf7 {[%emt 0:01:30]} 21. Nd6 {[%emt 0:02:30]} Qh5 {[%emt 0:02:30]} 22. Qb3 {[%emt 0:05:30]} Bd7 {[%emt 0:07:30]} 23. Rd2 {[%emt 0:05:30]} g4 {[%emt 0:00:30]} 24. Qd1 {[%emt 0:06:30]} Qg6 {[%emt 0:05:30]} 25. hxg4 {[%emt 0:02:30]} Bh6 {[%emt 0:00:30]} 26. Be5 {[%emt 0:10:30]} f4 {[%emt 0:01:30]} 27. exf4 {[%emt 0:00:30]} Bxf4 {[%emt 0:01:30]} 28. Re2 {[%emt 0:03:30]} Bxe5 {[%emt 0:01:30]} 29. dxe5 {[%emt 0:00:30]} Rf4 {[%emt 0:00:30]} 30. Qe1 {[%emt 0:01:30]} Rxg4 {[%emt 0:01:30]} 31. g3 {[%emt 0:00:00]} a5 {[%emt 0:01:30]} 32. Nxe4 {[%emt 0:01:00]} Kh8 {[%emt 0:03:05]} 33. Nf6 {[%emt 0:01:30]} Rd4 {[%emt 0:03:03]} 34. Rd1 {[%emt 0:01:30]} Rxd1 {[%emt 0:01:23]} 35. Qxd1 {[%emt 0:00:30]} Be8 {[%emt 0:00:00]} 36. Re4 {[%emt 0:02:30]} Qf5 {[%emt 0:01:05]} 37. Qd6 {[%emt 0:05:30]} Bg6 {[%emt 0:01:41]} 38. Qe7 {[%emt 0:02:30]} Qf3 {[%emt 0:02:02]} 39. Rd4 {[%emt 0:02:30]} Qc3 {[%emt 0:02:25]} 40. Rd8+ {[%emt 0:00:00]} Rxd8 {[%emt 0:30:30]} 41. Qxd8+ {[%emt 0:07:00]} Kg7 {[%emt 0:00:00]} 42. Qe7+ {[%emt 0:00:00]} Bf7 {[%emt 0:00:00]} 43. Nh5+ {[%emt 0:03:00]} Kh6 {[%emt 0:00:00]} 44. Qxf7 {[%emt 0:01:30]} axb4 {[%emt 0:00:00]} 45. Nf6 {[%emt 0:04:30]} 1-0